fUST/lending_fUST_20250114
["ID","MTS","AMOUNT","RATE_DAILY","PERIOD"]
[348874541,1736843439211,-500.0,0.00021917,3]
[348874542,1736843439220,-839.62,0.00021917,3]
[348874543,1736843439230,-500.0,0.00021917,3]
[348874544,1736843439240,-500.0,0.00021917,3]
[348874545,1736843439249,-500.0,0.00021917,3]
[348874546,1736843439259,-577.44,0.00021917,3]
[348874547,1736843439269,-620.11,0.00021917,3]
[348874548,1736843439280,-505.46507441,0.00021917,3]
[348874549,1736843439290,-500.0,0.00021917,3]
[348874550,1736843439300,-500.0,0.00021917,3]
[348874551,1736843439310,-500.0,0.00021917,3]
[348874552,1736843439320,-500.0,0.00021917,3]
[348874553,1736843439329,-500.0,0.00021917,3]
[348874554,1736843439339,-505.61422913,0.00021917,3]
[348874555,1736843439348,-500.0,0.00021917,3]
[348874556,1736843439358,-507.87347469,0.00021917,3]
[348874557,1736843439368,-500.0,0.00021917,3]
[348874558,1736843439379,-502.27752898,0.00021917,3]
[348874559,1736843439392,-500.0,0.00021917,3]
[348874560,1736843439403,-500.0,0.00021917,3]
[348874561,1736843439413,-500.0,0.00021917,3]
[348874562,1736843439423,-181.61932585,0.00021917,3]
[348874563,1736843439432,-500.0,0.00021917,3]
[348874564,1736843439442,-500.0,0.00021917,3]
[348874565,1736843439452,-500.0,0.00021917,3]
[348874566,1736843439462,-4505.16,0.00021917,3]
[348874567,1736843439472,-500.0,0.00021917,3]
[348874569,1736843439482,-150.18,0.00021917,2]
[348874570,1736843439492,-575.05,0.00021917,3]
[348874571,1736843439502,-500.0,0.00021917,3]
[348874572,1736843439512,-500.0,0.00021917,3]
[348874573,1736843439522,-500.0,0.00021917,3]
[348874574,1736843439531,-500.0,0.00021917,3]
[348874577,1736843439542,-500.0,0.00021917,3]
[348874579,1736843439552,-500.0,0.00021917,3]
[348874580,1736843439561,-423.01630849,0.00021917,3]
[348874582,1736843439571,-500.0,0.00021917,3]
[348874583,1736843439581,-500.0,0.00021917,3]
[348874584,1736843439591,-509.03759588,0.00021917,3]
[348874585,1736843439601,-500.0,0.00021917,3]
[348874586,1736843439610,-510.90131772,0.00021917,3]
[348874587,1736843439621,-500.0,0.00021917,3]
[348874588,1736843439630,-500.0,0.00021917,3]
[348874589,1736843439640,-507.06573294,0.00021917,3]
[348874591,1736843439651,-500.0,0.00021917,3]
[348874593,1736843439660,-466.12979985,0.00021917,3]
[348874595,1736843439670,-500.0,0.00021917,3]
[348874597,1736843439680,-500.0,0.00021917,3]
[348874599,1736843439690,-500.0,0.00021917,3]
[348874600,1736843439699,-1130.47,0.00021917,3]
[348874601,1736843439710,-12386.04,0.00021917,3]
[348874602,1736843439719,-632.45,0.00021917,3]
[348874603,1736843439729,-500.0,0.00021917,3]
[348874604,1736843439739,-500.0,0.00021917,3]
[348874605,1736843439750,-500.0,0.00021917,3]
[348874606,1736843439760,-500.0,0.00021917,3]
[348874607,1736843439770,-500.0,0.00021917,3]
[348874608,1736843439779,-500.0,0.00021917,3]
[348874609,1736843439789,-500.0,0.00021917,3]
[348874610,1736843439798,-500.0,0.00021917,3]
[348874611,1736843439808,-500.0,0.00021917,3]
[348874612,1736843439819,-508.33936572,0.00021917,3]
[348874613,1736843439829,-624.7,0.00021917,3]
[348874614,1736843439839,-211.40095772,0.00021917,3]
[348874615,1736843439849,-1439.98,0.00021917,3]
[348874616,1736843439859,-514.74901886,0.00021917,3]
[348874617,1736843439869,-500.0,0.00021917,3]
[348874618,1736843439878,-1307.98,0.00021917,3]
[348874619,1736843439888,-501.75049587,0.00021917,3]
[348874620,1736843439898,-506.65043996,0.00021917,3]
[348874621,1736843439908,-559.02299597,0.00021917,3]
[348874622,1736843439917,-500.0,0.00021917,3]
[348874623,1736843439927,-1157.4,0.00021917,3]
[348874624,1736843439937,-500.0,0.00021917,3]
[348874625,1736843439946,-500.0,0.00021917,3]
[348874626,1736843439956,-500.0,0.00021917,3]
[348874627,1736843439965,-500.0,0.00021917,3]
[348874628,1736843439975,-555.6,0.00021917,3]
[348874629,1736843439985,-506.11370065,0.00021917,3]
[348874630,1736843439995,-500.0,0.00021917,3]
[348874631,1736843440007,-517.78028898,0.00021917,3]
[348874632,1736843440018,-528.91316248,0.00021917,3]
[348874633,1736843440027,-500.0,0.00021917,3]
[348874634,1736843440038,-500.0,0.00021917,3]
[348874635,1736843440051,-784.11,0.00021917,3]
[348874636,1736843440060,-500.0,0.00021917,3]
[348874637,1736843440070,-500.0,0.00021917,3]
[348874638,1736843440081,-1154.03,0.00021917,3]
[348874639,1736843440090,-500.0,0.00021917,3]
[348874640,1736843440100,-720.65,0.00021917,3]
[348874641,1736843440109,-500.0,0.00021917,3]
[348874642,1736843440119,-520.52893368,0.00021917,3]
[348874643,1736843440128,-187.01285656,0.00021917,3]
[348874644,1736843440138,-500.0,0.00021917,3]
[348874645,1736843440148,-500.0,0.00021917,3]
[348874646,1736843440157,-500.0,0.00021917,3]
[348874647,1736843440167,-500.0,0.00021917,3]
[348874648,1736843440177,-500.0,0.00021917,2]
[348874650,1736843440187,-502.03660799,0.00021917,3]
[348874652,1736843440197,-921.64,0.00021917,3]
[348874653,1736843440208,-679.68,0.00021917,3]
[348874654,1736843440218,-500.0,0.00021917,3]
[348874656,1736843440227,-522.05,0.00021917,3]
[348874657,1736843440237,-500.0,0.00021917,3]
[348874658,1736843440247,-151.0,0.00021917,2]
[348874659,1736843440257,-500.0,0.00021917,3]
[348874660,1736843440267,-500.0,0.00021917,3]
[348874661,1736843440276,-500.0,0.00021917,3]
[348874662,1736843440286,-500.0,0.00021917,3]
[348874663,1736843440296,-500.0,0.00021917,3]
[348874664,1736843440306,-506.98996197,0.00021917,3]
[348874665,1736843440316,-500.0,0.00021917,3]
[348874666,1736843440326,-500.0,0.00021917,3]
[348874667,1736843440336,-762.28,0.00021917,3]
[348874668,1736843440345,-500.0,0.00021917,3]
[348874669,1736843440355,-500.0,0.00021917,3]
[348874670,1736843440365,-500.88315773,0.00021917,3]
[348874671,1736843440375,-500.0,0.00021917,3]
[348874672,1736843440384,-500.0,0.00021917,3]
[348874673,1736843440394,-500.0,0.00021917,3]
[348874674,1736843440403,-811.01,0.00021917,3]
[348874675,1736843440412,-500.0,0.00021917,3]
[348874676,1736843440422,-500.0,0.00021917,3]
[348874677,1736843440431,-500.0,0.00021917,3]
[348874678,1736843440441,-500.0,0.00021917,3]
[348874679,1736843440451,-500.0,0.00021917,3]
[348874680,1736843440461,-500.0,0.00021917,3]
[348874681,1736843440472,-502.62020684,0.00021917,3]
[348874682,1736843440481,-500.0,0.00021917,3]
[348874683,1736843440491,-572.76,0.00021917,3]
[348874684,1736843440502,-500.0,0.00021917,3]
[348874685,1736843440511,-500.0,0.00021917,3]
[348874686,1736843440521,-189.21202171,0.00021917,3]
[348874687,1736843440530,-1216.05,0.00021917,3]
[348874688,1736843440539,-1225.24,0.00021917,3]
[348874689,1736843440550,-1521.33,0.00021917,3]
[348874690,1736843440559,-680.11,0.00021917,3]
[348874691,1736843440569,-500.0,0.00021917,3]
[348874692,1736843440578,-500.0,0.00021917,3]
[348874693,1736843440587,-500.0,0.00021917,3]
[348874694,1736843440596,-500.0,0.00021917,3]
[348874695,1736843440606,-3844.36,0.00021917,3]
[348874696,1736843440615,-30709.83,0.00021917,2]
[348874697,1736843440625,-500.0,0.00021917,3]
[348874698,1736843440634,-311.19343501,0.00021917,3]
[348874699,1736843440643,-500.0,0.00021917,3]
[348874700,1736843440653,-504.61102196,0.00021917,3]
[348874701,1736843440662,-500.0,0.00021917,3]
[348874702,1736843440672,-500.0,0.00021917,3]
[348874703,1736843440681,-500.0,0.00021917,3]
[348874704,1736843440691,-500.0,0.00021917,3]
[348874705,1736843440700,-526.13917003,0.00021917,3]
[348874706,1736843440710,-507.19339292,0.00021917,3]
[348874707,1736843440719,-500.0,0.00021917,3]
[348874708,1736843440728,-500.0,0.00021917,3]
[348874709,1736843440737,-500.0,0.00021917,3]
[348874710,1736843440748,-500.0,0.00021917,3]
[348874711,1736843440757,-500.0,0.00021917,3]
[348874712,1736843440777,-500.0,0.00021917,3]
[348874713,1736843440788,-40384.11,0.00021917,3]
[348874714,1736843440798,-500.0,0.00021917,3]
[348874715,1736843440808,-500.0,0.00021917,3]
[348874716,1736843440818,-500.0,0.00021917,3]
[348874717,1736843440828,-500.0,0.00021917,3]
[348874718,1736843440837,-300.0,0.00021917,3]
[348874719,1736843440847,-500.0,0.00021917,3]
[348874720,1736843440857,-500.0,0.00021917,3]
[348874721,1736843440867,-507.43440968,0.00021917,3]
[348874722,1736843440876,-500.0,0.00021917,3]
[348874723,1736843440886,-151.0,0.00021917,2]
[348874724,1736843440896,-6126.66,0.00021917,3]
[348874725,1736843440906,-500.0,0.00021917,3]
[348874726,1736843440916,-1121.94,0.00021917,3]
[348874727,1736843440926,-153.324186,0.00021917,2]
[348874728,1736843440935,-500.0,0.00021917,3]
[348874729,1736843440945,-500.0,0.00021917,3]
[348874730,1736843440954,-508.88,0.00021917,3]
[348874731,1736843440965,-1058.82,0.00021917,3]
[348874732,1736843440975,-655.54,0.00021917,3]
[348874733,1736843440984,-613.33538326,0.00021917,3]
[348874734,1736843440995,-500.0,0.00021917,3]
[348874735,1736843441005,-500.0,0.00021917,3]
[348874736,1736843441018,-500.0,0.00021917,3]
[348874737,1736843441169,-1826.05,0.00021917,3]
[348874738,1736843441193,-500.0,0.00021917,3]
[348874739,1736843441203,-500.0,0.00021917,3]
[348874740,1736843441212,-500.0,0.00021917,3]
[348874741,1736843441221,-7662.76,0.00021917,2]
[348874742,1736843441231,-500.0,0.00021917,3]
[348874743,1736843441240,-512.49011054,0.00021917,3]
[348874744,1736843441251,-638.79250811,0.00021917,3]
[348874745,1736843441260,-1402.8,0.00021917,3]
[348874746,1736843441270,-517.21392047,0.00021917,3]
[348874747,1736843441279,-503.40880925,0.00021917,3]
[348874748,1736843441288,-500.0,0.00021917,3]
[348874749,1736843441298,-500.0,0.00021917,3]
[348874750,1736843441307,-2193.92,0.00021917,3]
[348874751,1736843441316,-500.0,0.00021917,3]
[348874752,1736843441326,-500.0,0.00021917,3]
[348874753,1736843441336,-500.0,0.00021917,3]
[348874754,1736843441345,-500.0,0.00021917,3]
[348874755,1736843441354,-703.44,0.00021917,3]
[348874756,1736843441363,-169.57055244,0.00021917,2]
[348874757,1736843441372,-500.0,0.00021917,2]
[348874758,1736843441381,-2285.21,0.00021917,3]
[348874759,1736843441391,-152.11741219,0.00021917,2]
[348874760,1736843441401,-696.58,0.00021917,3]
[348874761,1736843441411,-251.92950846,0.00021917,2]
[348874762,1736843441420,-1034.57,0.00021917,3]
[348874763,1736843441430,-500.0,0.00021917,3]
[348874764,1736843441439,-501.7,0.00021917,3]
[348874765,1736843441448,-500.0,0.00021917,2]
[348874766,1736843441457,-1879.99,0.00021917,3]
[348874767,1736843441466,-500.0,0.00021917,3]
[348874768,1736843441475,-500.0,0.00021917,3]
[348874769,1736843441484,-500.0,0.00021917,3]
[348874770,1736843441494,-500.0,0.00021917,3]
[348874771,1736843441503,-150.18,0.00021917,2]
[348874772,1736843441512,-500.0,0.00021917,2]
[348874773,1736843441525,-500.0,0.00021917,3]
[348874774,1736843441535,-500.0,0.00021917,3]
[348874775,1736843441545,-501.39352562,0.00021917,3]
[348874776,1736843441555,-500.0,0.00021917,3]
[348874777,1736843441564,-150.18,0.00021917,2]
[348874778,1736843441574,-150.18,0.00021917,2]
[348874779,1736843441583,-500.0,0.00021917,3]
[348874780,1736843441593,-500.0,0.00021917,3]
[348874781,1736843441602,-500.0,0.00021917,3]
[348874782,1736843441611,-678.79,0.00021917,3]
[348874783,1736843441620,-500.0,0.00021917,3]
[348874784,1736843441630,-500.0,0.00021917,3]
[348874785,1736843441640,-500.0,0.00021917,3]
[348874786,1736843441650,-502.90752119,0.00021917,3]
[348874787,1736843441661,-500.0,0.00021917,3]
[348874788,1736843441672,-500.0,0.00021917,3]
[348874789,1736843441682,-500.0,0.00021917,3]
[348874790,1736843441692,-500.0,0.00021917,3]
[348874791,1736843441701,-4870.41,0.00021917,3]
[348874792,1736843441711,-500.0,0.00021917,3]
[348874793,1736843441720,-500.0,0.00021917,3]
[348874794,1736843441730,-1896.58,0.00021917,3]
[348874795,1736843441739,-500.0,0.00021917,3]
[348874796,1736843441749,-500.0,0.00021917,3]
[348874797,1736843441759,-2055.01,0.00021917,3]
[348874798,1736843441768,-500.0,0.00021917,3]
[348874799,1736843441777,-500.0,0.00021917,3]
[348874800,1736843441786,-500.0,0.00021917,3]
[348874801,1736843441795,-500.0,0.00021917,3]
[348874802,1736843441804,-500.0,0.00021917,3]
[348874803,1736843441814,-500.0,0.00021917,3]
[348874804,1736843441823,-500.0,0.00021917,3]
[348874805,1736843441832,-500.0,0.00021917,3]
[348874806,1736843441841,-500.0,0.00021917,3]
[348874807,1736843441851,-500.0,0.00021917,3]
[348874808,1736843441860,-500.0,0.00021917,3]
[348874809,1736843441870,-500.0,0.00021917,3]
[348874810,1736843441880,-273.34086391,0.00021917,3]
[348874811,1736843441889,-508.29927102,0.00021917,3]
[348874812,1736843441900,-500.0,0.00021917,3]
[348874813,1736843441910,-4478.15,0.00021917,3]
[348874814,1736843441920,-500.0,0.00021917,3]
[348874815,1736843441929,-500.0,0.00021917,3]
[348874816,1736843441938,-500.0,0.00021917,3]
[348874817,1736843441949,-502.59351336,0.00021917,3]
[348874818,1736843441958,-500.0,0.00021917,3]
[348874819,1736843441967,-289.37010162,0.00021917,2]
[348874820,1736843441976,-500.0,0.00021917,3]
[348874821,1736843441985,-3973.34,0.00021917,3]
[348874822,1736843441995,-360.84624524,0.00021917,3]
[348874823,1736843442006,-571.70611782,0.00021917,3]
[348874824,1736843442021,-1000.0,0.00021917,7]
[348874825,1736843442030,-500.0,0.00021917,3]
[348874826,1736843442039,-274.4040445,0.00021917,3]
[348874827,1736843442049,-541.18,0.00021917,3]
[348874828,1736843442059,-500.0,0.00021917,3]
[348874829,1736843442068,-500.0,0.00021917,3]
[348874830,1736843442078,-500.0,0.00021917,3]
[348874831,1736843442090,-2030.1,0.00021917,3]
[348874832,1736843442101,-1015.91,0.00021917,3]
[348874833,1736843442111,-500.0,0.00021917,3]
[348874834,1736843442121,-500.0,0.00021917,3]
[348874835,1736843442131,-5162.54018931,0.00021917,3]
[348874836,1736843442366,-1228.90981069,0.00021917,3]
[348874837,1736843442376,-500.0,0.00021917,3]
[348874838,1736843442385,-499.3277323,0.00021917,3]
[348874839,1736843442394,-500.0,0.00021917,3]
[348874840,1736843442403,-500.0,0.00021917,3]
[348874841,1736843442412,-500.0,0.00021917,3]
[348874842,1736843442421,-500.0,0.00021917,3]
[348874843,1736843442431,-500.0,0.00021917,3]
[348874844,1736843442440,-500.0,0.00021917,3]
[348874845,1736843442449,-2223.85,0.00021917,3]
[348874846,1736843442458,-500.0,0.00021917,3]
[348874847,1736843442467,-1623.99,0.00021917,3]
[348874848,1736843442476,-500.0,0.00021917,3]
[348874849,1736843442485,-500.0,0.00021917,3]
[348874850,1736843442494,-500.0,0.00021917,3]
[348874851,1736843442504,-500.0,0.00021917,3]
[348874852,1736843442513,-500.0,0.00021917,3]
[348874853,1736843442522,-500.0,0.00021917,3]
[348874854,1736843442531,-506.65643351,0.00021917,3]
[348874855,1736843442543,-500.0,0.00021917,3]
[348874857,1736843442552,-500.0,0.00021917,3]
[348874858,1736843442561,-1000.0,0.00021917,2]
[348874859,1736843442570,-1000.0,0.00021917,2]
[348874860,1736843442580,-500.0,0.00021917,3]
[348874861,1736843442589,-507.74207526,0.00021917,3]
[348874862,1736843442598,-501.80145396,0.00021917,2]
[348874863,1736843442606,-500.0,0.00021917,2]
[348874864,1736843442616,-500.0,0.00021917,3]
[348874865,1736843442625,-500.0,0.00021917,2]
[348874866,1736843442635,-620.24,0.00021917,3]
[348874867,1736843442644,-500.0,0.00021917,3]
[348874868,1736843442653,-1821.1,0.00021917,3]
[348874869,1736843442663,-500.0,0.00021917,3]
[348874870,1736843442672,-500.0,0.00021917,3]
[348874871,1736843442682,-1487.31,0.00021917,3]
[348874872,1736843442691,-807.24354985,0.00021917,3]
[348874901,1736843443342,-990.08645015,0.00021917,3]
[348874903,1736843443351,-563.91,0.00021917,3]
[348874905,1736843443361,-500.0,0.00021917,3]
[348874907,1736843443370,-500.0,0.00021917,3]
[348874909,1736843443379,-1161.94,0.00021917,3]
[348874911,1736843443388,-157.58554341,0.00021954,2]
[348874913,1736843443400,-12.92098274,0.00021954,2]
[348874915,1736843443409,-170.50652615,0.00021954,2]
[348874917,1736843443418,-170.50652615,0.00021954,2]
[348874919,1736843443428,-170.50652615,0.00021954,2]
[348874921,1736843443437,-170.50652615,0.00021954,2]
[348874923,1736843443446,-170.50652615,0.00021954,2]
[348874925,1736843443455,-170.50652615,0.00021954,2]
[348874927,1736843443465,-170.50652615,0.00021954,2]
[348874929,1736843443474,-170.50652615,0.00021954,2]
[348874931,1736843443483,-170.50652615,0.00021954,2]
[348874933,1736843443493,-170.50652615,0.00021954,2]
[348874935,1736843443503,-170.50652615,0.00021954,2]
[348874937,1736843443513,-170.50652615,0.00021954,2]
[348874940,1736843443526,-170.50652615,0.00021954,2]
[348874942,1736843443536,-170.50652615,0.00021954,2]
[348874944,1736843443547,-170.50652615,0.00021954,2]
[348874946,1736843443556,-170.50652615,0.00021954,2]
[348874948,1736843443566,-170.50652615,0.00021954,2]
[348874950,1736843443575,-170.50652615,0.00021954,2]
[348874952,1736843443585,-170.5,0.00021954,2]
[348874954,1736843443594,-255.75978923,0.00021954,2]
[348874956,1736843443604,-97.14372807,0.00021954,2]
[348874958,1736843443615,-158.61606116,0.00021954,2]
[348874960,1736843443625,-255.75978923,0.00021954,2]
[348874962,1736843443634,-63.01414961,0.00021954,2]
[348874964,1736843443646,-192.74563962,0.00021954,2]
[348874967,1736843443656,-255.75978923,0.00021954,2]
[348874970,1736843443665,-75.27350015,0.00021954,2]
[348874973,1736843443678,-180.48628908,0.00021954,2]
[348874976,1736843443687,-255.75978923,0.00021954,2]
[348874978,1736843443696,-255.75978923,0.00021954,2]
[348874980,1736843443706,-255.75978923,0.00021954,2]
[348874983,1736843443715,-255.75978923,0.00021954,2]
[348874985,1736843443725,-255.75978923,0.00021954,2]
[348874987,1736843443735,-255.75978923,0.00021954,2]
[348874989,1736843443744,-255.75978923,0.00021954,2]
[348874991,1736843443755,-255.75978923,0.00021954,2]
[348874993,1736843443764,-255.75978923,0.00021954,2]
[348874995,1736843443773,-255.75978923,0.00021954,2]
[348874997,1736843443783,-255.75978923,0.00021954,2]
[348874999,1736843443792,-255.75978923,0.00021954,2]
[348875001,1736843443801,-151.0,0.00021954,7]
[348875003,1736843443810,-151.0,0.00021954,7]
[348875005,1736843443819,-182.85142828,0.00021954,2]
[348875007,1736843443828,-500.79693993,0.00021973,2]
[348875009,1736843443839,-207.99231028,0.00021973,2]
[348875011,1736843443848,-309.47889835,0.00021973,2]
[348875013,1736843443858,-163.05097917,0.00021973,2]
[348875015,1736843443867,-642.98576511,0.00021973,2]
[348875017,1736843443877,-500.0,0.00021973,2]
[348875019,1736843443886,-501.08916729,0.00021973,2]
[348875021,1736843443895,-501.6190462,0.00021973,2]
[348875023,1736843443904,-894.92882198,0.00021978,2]
[348875025,1736843443914,-255.75978923,0.00021981,2]
[348875027,1736843443924,-22565.6702506,0.00022,2]
[348875047,1736843444103,-964.68410168,0.00022,2]
[348875049,1736843444112,-1885.79589832,0.00022,3]
[348875087,1736843444478,-2131.29410168,0.00022,3]
[348875089,1736843444488,-6044.42968891,0.00022,5]
[348875091,1736843444500,-3445.8888204,0.00022,5]
[348875093,1736843444509,-1000.0,0.00022,3]
[348875095,1736843444518,-17826.18444333,0.00022,4]
[348875097,1736843444528,-151.0,0.00022,5]
[348875099,1736843444537,-151.0,0.00022,7]
[348875101,1736843444548,-151.0,0.00022,7]
[348875103,1736843444557,-151.0,0.00022,7]
[348875106,1736843444567,-151.0,0.00022,8]
[348875108,1736843444577,-151.0,0.00022,9]
[348875110,1736843444587,-151.0,0.00022,7]
[348875111,1736843444596,-151.0,0.00022,7]
[348875113,1736843444606,-29643.22766686,0.00022,7]
[348875115,1736843444615,-500.0,0.00022054,3]
[348875118,1736843444625,-500.0,0.00022054,3]
[348875120,1736843444635,-500.0,0.00022054,3]
[348875122,1736843444644,-514.74830745,0.00022054,3]
[348875123,1736843444653,-500.0,0.00022054,3]
[348875125,1736843444663,-170.4498667,0.00022054,3]
[348875128,1736843444675,-329.5501333,0.00022054,3]
[348875130,1736843444684,-500.0,0.00022054,3]
[348875132,1736843444693,-500.0,0.00022054,3]
[348875134,1736843444703,-504.11,0.00022054,3]
[348875136,1736843444711,-500.0,0.00022054,3]
[348875138,1736843444721,-500.0,0.00022054,3]
[348875140,1736843444730,-500.0,0.00022054,3]
[348875142,1736843444740,-500.0,0.00022054,3]
[348875144,1736843444752,-500.0,0.00022054,3]
[348875146,1736843444761,-500.0,0.00022054,3]
[348875148,1736843444770,-500.0,0.00022054,3]
[348875150,1736843444779,-500.0,0.00022054,3]
[348875152,1736843444788,-509.61724572,0.00022054,3]
[348875154,1736843444798,-500.0,0.00022054,3]
[348875156,1736843444807,-500.0,0.00022054,3]
[348875158,1736843444817,-500.0,0.00022054,3]
[348875160,1736843444826,-273.10615024,0.00022054,3]
[348875162,1736843444836,-500.0,0.00022054,3]
[348875164,1736843444845,-526.2768009,0.00022054,3]
[348875166,1736843444855,-1000.0,0.00022054,3]
[348875168,1736843444864,-500.0,0.00022054,3]
[348875170,1736843444873,-500.0,0.00022054,3]
[348875172,1736843444883,-500.0,0.00022054,3]
[348875174,1736843444892,-500.0,0.00022054,3]
[348875176,1736843444902,-151.0,0.00022054,7]
[348875178,1736843444911,-204.812677,0.00022054,7]
[348875180,1736843444920,-500.0,0.00022054,3]
[348875182,1736843444930,-500.0,0.00022054,3]
[348875184,1736843444939,-500.0,0.00022054,3]
[348875186,1736843444948,-196.82414318,0.00022054,3]
[348875189,1736843444961,-303.17585682,0.00022054,3]
[348875191,1736843444970,-500.0,0.00022054,3]
[348875193,1736843444979,-500.0,0.00022054,3]
[348875195,1736843444989,-200.0,0.00022054,3]
[348875197,1736843445000,-500.0,0.00022054,3]
[348875199,1736843445012,-505.55398884,0.00022054,3]
[348875201,1736843445021,-500.0,0.00022054,3]
[348875203,1736843445030,-500.0,0.00022054,3]
[348875205,1736843445040,-500.0,0.00022054,3]
[348875207,1736843445051,-500.0,0.00022054,3]
[348875209,1736843445061,-516.23,0.00022054,3]
[348875211,1736843445070,-500.0,0.00022054,3]
[348875213,1736843445079,-500.0,0.00022054,3]
[348875215,1736843445091,-213.16098007,0.00022054,3]
[348875217,1736843445100,-500.0,0.00022054,3]
[348875219,1736843445109,-13.55749761,0.00022054,3]
[348875221,1736843445122,-486.44250239,0.00022054,3]
[348875223,1736843445131,-500.0,0.00022054,3]
[348875225,1736843445141,-623.16,0.00022054,3]
[348875227,1736843445150,-500.0,0.00022054,3]
[348875230,1736843445159,-61.3518422,0.00022054,3]
[348875388,1736843953325,5920.56,0.000239,30]
[348875425,1736844213892,2000.0,0.00024,30]
[348875426,1736844214203,2000.0,0.00024,30]
[348875427,1736844214572,2000.0,0.00024,30]
[348875428,1736844214771,2000.0,0.00024,30]
[348875429,1736844215297,2000.0,0.00024,30]
[348875430,1736844215785,2000.0,0.00024,30]
[348875431,1736844216402,2000.0,0.00024,30]
[348875432,1736844216832,2000.0,0.00024,30]
[348875433,1736844217334,2000.0,0.00024,30]
[348875434,1736844217901,2000.0,0.00024,30]
[348875435,1736844242807,2000.0,0.00024,30]
[348875436,1736844243162,2000.0,0.00024,30]
[348875437,1736844243457,2000.0,0.00024,30]
[348875438,1736844243760,2000.0,0.00024,30]
[348875439,1736844244565,2000.0,0.00024,30]
[348875440,1736844245018,2000.0,0.00024,30]
[348875441,1736844245324,2000.0,0.00024,30]
[348875442,1736844245689,2000.0,0.00024,30]
[348875443,1736844245967,2000.0,0.00024,30]
[348875444,1736844246319,2000.0,0.00024,30]
[348875445,1736844248305,2000.0,0.00024,30]
[348875446,1736844248829,2000.0,0.00024,30]
[348875447,1736844249027,2000.0,0.00024,30]
[348875448,1736844249336,2000.0,0.00024,30]
[348875449,1736844249623,2000.0,0.00024,30]
[348875450,1736844249932,2000.0,0.00024,30]
[348875451,1736844250239,2000.0,0.00024,30]
[348875452,1736844250518,2000.0,0.00024,30]
[348875453,1736844250943,2000.0,0.00024,30]
[348875454,1736844251260,2000.0,0.00024,30]
[348875455,1736844253741,2000.0,0.00024,30]
[348875456,1736844254472,2000.0,0.00024,30]
[348875458,1736844255085,2000.0,0.00024,30]
[348875459,1736844255383,2000.0,0.00024,30]
[348875460,1736844255856,2000.0,0.00024,30]
[348875461,1736844256022,2000.0,0.00024,30]
[348875462,1736844256314,2000.0,0.00024,30]
[348875463,1736844256709,2000.0,0.00024,30]
[348875464,1736844257070,2000.0,0.00024,30]
[348875465,1736844257515,2000.0,0.00024,30]
[348875466,1736844267100,1000.0,0.00024,30]
[348875467,1736844267420,1000.0,0.00024,30]
[348875468,1736844267739,1000.0,0.00024,30]
[348875469,1736844268095,1000.0,0.00024,30]
[348875470,1736844268742,1000.0,0.00024,30]
[348875471,1736844269142,1000.0,0.00024,30]
[348875472,1736844269446,1000.0,0.00024,30]